[Event "Croatian 1A League 2022"]
[Site "Porec"]
[Date "2022.09.28"]
[Round "5.2"]
[White "Banusz, Tamas"]
[Black "Fercec, Nenad"]
[Result "1/2-1/2"]
[ECO "A50"]
[WhiteElo "2622"]
[BlackElo "2403"]
[Annotator "TA"]
[PlyCount "114"]
[EventDate "2022.09.24"]
[EventType "team-tourn"]
[EventCountry "CRO"]
[SourceTitle "playchess.com"]
[Source "ChessBase"]
[SourceQuality "1"]
[TimeControl "40/5400+30:1800+30"]

{[%evp 13,114,21,28,9,21,27,17,15,23,20,22,0,14,26,16,11,7,12,12,0,0,0,11,0,17,20,14,0,0,7,20,15,22,2,27,17,33,8,33,33,33,28,77,41,36,17,43,5,72,0,43,20,20,20,23,0,0,0,0,0,0,0,0,0,0,0,0,0,-11,-621,-600,-579,-533,-490,-14,-14,8,8,8,8,777,8,8,8,8,8,8,8,8,0,0,0,46,0,0,0,0,0,8,8,8,8,8]} 1. c4 {[%emt 0:00:49]} Nf6 {[%emt 0:00:09]} 2. Nf3 {[%emt 0:00:37]} b6 {[%emt 0:00:21]} 3. g3 {[%emt 0:00:31]} Bb7 {[%emt 0:00:08]} 4. Bg2 {[%emt 0:00:05]} g6 {[%emt 0:00:07]} 5. d4 {[%emt 0:01:03]} e6 {[%emt 0:00:24]} 6. O-O {[%emt 0:00:31]} Bg7 {[%emt 0:00:07]} 7. Nc3 {[%emt 0:00:29]} O-O {[%emt 0:00:13]} 8. Qc2 {[%emt 0:01:50] A50: Queen's Fianchetto Defence (1 d4 Nf6 2 c4 b6).} d5 {[%emt 0:00:52]} 9. cxd5 {[%emt 0:01:03]} exd5 {[%emt 0:00:40]} 10. Bf4 {[%emt 0:01:51]} (10. Ne5 {seems wilder.} Na6 11. Bg5 Qe8 12. Qb3) 10... c6 {[%emt 0:01:02]} 11. Rad1 {[%emt 0:05:21]} Nbd7 {[%emt 0:03:24] [#]} 12. e4 $146 {[%emt 0:13:13]} ({Predecessor:} 12. Rfe1 Re8 13. Ne5 Nh5 14. Nd3 Bxd4 15. e4 Nxf4 16. Nxf4 Be5 17. exd5 c5 18. Nd3 {0-1 (35) Olafsson,H (2511)-Terry,R (2510) Chess.com INT 2019}) 12... Nxe4 {[%emt 0:01:42]} 13. Nxe4 {[%emt 0:00:06]} dxe4 {[%emt 0:00:05]} 14. Qxe4 {[%emt 0:01:15]} Nf6 {[%emt 0:00:40]} 15. Qc2 {[%emt 0:00:31]} Nd5 {[%emt 0:00:07]} 16. Bc1 {[%emt 0:01:48]} Re8 {[%emt 0:04:46]} 17. Rfe1 {[%emt 0:05:57]} Qd6 {[%emt 0:16:15]} 18. a3 {[%emt 0:03:28]} a5 {[%emt 0:15:03]} 19. h4 {[%emt 0:02:31]} h6 {[%emt 0:02:38]} 20. Kh2 {[%emt 0:12:58]} Rxe1 {[%emt 0:13:14]} 21. Rxe1 {[%emt 0:00:19]} Rd8 {[%emt 0:00:04]} 22. Ne5 {[%emt 0:08:32]} Re8 {[%emt 0:06:05]} 23. f4 {[%emt 0:04:50]} Nf6 {[%emt 0:01:51]} 24. Be3 {[%emt 0:06:09]} Re7 {[%emt 0:08:19]} 25. Qb3 {[%emt 0:04:11]} Nd5 {[%emt 0:03:33]} 26. Bf2 {[%emt 0:03:46]} h5 {[%emt 0:01:11]} 27. Bf3 {[%emt 0:03:05]} b5 {[%emt 0:14:18]} (27... Qd8 $11 {should be considered.}) 28. Rc1 {[%emt 0:01:34]} a4 {[%emt 0:00:36]} 29. Qc2 {[%emt 0:00:58]} Re6 {[%emt 0:00:54]} 30. Bg2 {[%emt 0:03:50]} Nf6 {[%emt 0:03:56]} (30... Re8 $11 {remains equal.}) 31. Bf3 {[%emt 0:01:09] White is more active.} (31. Bxc6 Bxc6 32. Qxc6 (32. Nxc6 Ng4+ 33. Kg1 Nxf2 $15) 32... Ng4+ 33. Kg1 Nxf2 34. Qxd6 Rxd6 $11) (31. f5 $16 Re8 32. fxg6 fxg6 33. Bf3 (33. Bxc6 Rc8 $15) (33. Qxg6 $2 Ng4+ 34. Kg1 Qxg6 $19)) 31... Re8 {[%emt 0:00:31]} 32. Kg2 {[%emt 0:06:13][%cal Rf3c6]} (32. Bxc6 Rc8 33. Qc5 Qe6 $11) (32. Nxc6 Ng4+ 33. Kg2 Bxc6 34. Bxc6 (34. Qxc6 Qxc6 35. Rxc6 Nxf2 $17) 34... Ne3+ 35. Bxe3 Rxe3 $11) 32... Ng4 {[%emt 0:00:20]} 33. Bg1 {[%emt 0:00:40]} (33. Nxg4 hxg4 34. Bxc6 Bxc6+ 35. Qxc6 Qxc6+ 36. Rxc6 Re2 $17) (33. Bxc6 Rc8 34. d5 Bxe5 35. fxe5 Qxe5 $17) (33. Qc5 $5 {[%cal Rc5d6]} Qe6 34. Qb6 $14 (34. Bxc6 Bxe5 35. fxe5 Qf5 $17)) 33... Qe6 {[%emt 0:00:23]} 34. Re1 {[%emt 0:00:53]} (34. Bxc6 Rc8 35. Bxb7 Rxc2+ 36. Rxc2 Qb3 $11) 34... Qc8 {[%emt 0:02:04]} 35. Qc3 {[%emt 0:02:44]} c5 {[%emt 0:00:31]} 36. dxc5 {[%emt 0:01:08]} Nxe5 {[%emt 0:01:13]} 37. fxe5 {[%emt 0:00:08] Strongly threatening c6.} Bxf3+ {[%emt 0:00:08]} 38. Qxf3 {[%emt 0:00:05]} Rxe5 {[%emt 0:00:12]} 39. Rxe5 {[%emt 0:00:52]} Bxe5 $11 {[%emt 0:00:06][%mdl 4096] Endgame KQB-KQB} 40. Qd5 {[%emt 0:00:00]} Qe6 {[%emt 0:00:00]} 41. Qxe6 {[%emt 0:12:45][%mdl 8192]} (41. Qe4 $11) 41... fxe6 {[%emt 0:00:27] KB-KB} 42. c6 {[%emt 0:00:04] aiming for Bb6.} Kf7 {[%emt 0:00:51]} 43. Bd4 {[%emt 0:04:00] [#]} Bd6 {[%emt 0:00:50]} (43... Bxd4 44. c7 Bxb2 45. c8=Q $18) (43... Bc7 $1 $19 44. Kf3 Ke7) 44. Kf3 {[%emt 0:01:13] And now Ke4 would win.} (44. Bb6 Ke7 45. Bd4 Kd8 $19) 44... Ke8 {[%emt 0:00:13]} 45. Bf6 {[%emt 0:00:39]} ({Avoid the trap} 45. Bb6 $2 Be5 46. g4 hxg4+ 47. Ke4 (47. Kxg4 $2 b4 $19) 47... Bxb2 $19) 45... Kf7 $1 {[%emt 0:05:43]} 46. Bg5 {[%emt 0:00:14] Black must now prevent Ke4.} Ke8 $2 {[%emt 0:01:41][%mdl 8192] [#]} (46... e5 $11) 47. Bf4 $2 {[%emt 0:03:28]} ({White must play} 47. Ke4 $1 $18) 47... Bf8 {[%emt 0:01:15]} 48. Ke4 {[%emt 0:01:38]} Kd8 {[%emt 0:00:19]} 49. Be5 {[%emt 0:05:21]} Kc8 {[%emt 0:00:47]} 50. Kd4 {[%emt 0:02:37]} Be7 {[%emt 0:02:17]} 51. Bf4 {[%emt 0:01:09] Ke5 is the strong threat.} Bf6+ {[%emt 0:00:21]} 52. Be5 {[%emt 0:02:51]} Be7 {[%emt 0:00:06]} 53. Bf4 {[%emt 0:00:27]} (53. Kc3 $14) 53... Bf6+ {[%emt 0:00:09] The position is equal.} 54. Kc5 {[%emt 0:00:18]} Bxb2 {[%emt 0:00:08]} 55. Kxb5 {[%emt 0:00:02] Hoping for Bd6.} Bxa3 {[%emt 0:00:10]} 56. Kxa4 {[%emt 0:00:05]} Bb2 {[%emt 0:00:41]} 57. Bd6 {[%emt 0:01:22]} Bf6 {[%emt 0:00:06] Weighted Error Value: White=0.40/Black=0.19 (very precise)} 1/2-1/2

[Event "Croatian 1A League 2022"]
[Site "Porec"]
[Date "2022.09.28"]
[Round "5.3"]
[White "Krsnik Cohar, Ivan Vihor"]
[Black "Balogh, Csaba"]
[Result "1/2-1/2"]
[ECO "B25"]
[WhiteElo "2296"]
[BlackElo "2583"]
[Annotator "TA"]
[PlyCount "141"]
[EventDate "2022.09.24"]
[EventType "team-tourn"]
[EventCountry "CRO"]
[SourceTitle "playchess.com"]
[Source "ChessBase"]
[SourceQuality "1"]
[TimeControl "40/5400+30:1800+30"]

{[%evp 11,141,4,16,0,14,14,8,12,13,2,20,6,20,-16,-4,-8,-10,-22,-17,-12,2,0,0,0,0,0,0,0,0,-16,15,-3,10,-20,-14,-14,-35,-108,-93,-112,0,0,0,0,0,0,0,-45,-33,-48,-17,-13,0,0,0,-3,-6,-5,0,-25,-28,-23,-8,-8,-8,-8,-12,-14,-15,-15,-15,-15,-14,-14,-8,-14,-4,-8,-8,-8,-8,-8,-8,-8,-8,-8,-8,-8,-8,-8,-8,-8,0,0,0,0,0,-8,-8,-14,0,0,0,0,0,0,0,0,0,0,0,0,0,0,0,0,0,0,0,0,0,0,0,0,0,0,0,0,0,0,0,0]} 1. e4 {[%emt 0:03:27]} c5 {[%emt 0:00:20]} 2. g3 {[%emt 0:00:06]} Nc6 {[%emt 0:00:57]} 3. Bg2 {[%emt 0:00:07]} g6 {[%emt 0:00:13]} 4. Ne2 {[%emt 0:00:52]} Bg7 {[%emt 0:00:08]} 5. d3 {[%emt 0:05:04]} Nf6 {[%emt 0:03:59]} 6. Nbc3 {[%emt 0:02:51]} d6 {[%emt 0:01:03]} 7. Nd5 {[%emt 0:04:17] B25: Closed Sicilian: 3 g3, lines without early Be3.} e6 {[%emt 0:28:10]} 8. Nxf6+ {[%emt 0:02:10]} Qxf6 {[%emt 0:00:04]} 9. O-O {[%emt 0:00:58]} O-O {[%emt 0:00:08]} 10. c3 {[%emt 0:01:29] [#]} Qe7 $146 {[%emt 0:03:30]} ({Predecessor:} 10... Rb8 11. Be3 Qe7 12. d4 b6 13. Qd2 Ba6 14. Rfe1 e5 15. d5 Na5 16. b3 f5 {0-1 (40) Brenke,A (2285)-Hengelbrock,J Germany 1994}) 11. Be3 {[%emt 0:02:08]} b6 {[%emt 0:00:21]} 12. f4 {[%emt 0:18:45]} Bb7 {[%emt 0:01:21]} 13. Qd2 {[%emt 0:05:02]} f5 {[%emt 0:04:29]} 14. Rae1 {[%emt 0:07:07]} Qd7 {[%emt 0:05:33]} 15. exf5 {[%emt 0:10:38]} gxf5 {[%emt 0:01:11]} 16. d4 {[%emt 0:01:38]} Ne7 {[%emt 0:05:58]} 17. Bxb7 {[%emt 0:01:39]} Qxb7 {[%emt 0:00:04]} 18. dxc5 {[%emt 0:00:07]} dxc5 {[%emt 0:00:21]} 19. Nc1 {[%emt 0:08:16]} Rad8 {[%emt 0:01:41]} 20. Qg2 {[%emt 0:00:07]} Qc7 {[%emt 0:12:50]} 21. Re2 {[%emt 0:02:13]} Rd6 {[%emt 0:01:57]} 22. Rfe1 {[%emt 0:00:39]} Rfd8 {[%emt 0:00:22]} 23. Bf2 {[%emt 0:00:07]} Qd7 {[%emt 0:02:59]} 24. g4 {[%emt 0:02:25]} (24. Qf3 $15) 24... fxg4 {[%emt 0:01:49]} 25. Bh4 {[%emt 0:00:37]} Ng6 {[%emt 0:05:18]} (25... h5 $17 {Threatens to win with ...Ng6.} 26. f5 e5) 26. Bxd8 $11 {[%emt 0:06:04]} Nxf4 {[%emt 0:00:05]} 27. Qxg4 {[%emt 0:00:01]} Nxe2+ {[%emt 0:00:10]} 28. Nxe2 {[%emt 0:00:04][%cal Bc1e2,Be2g3,Bg3e4][%mdl 32] [#] Strongly threatening Bh4.} Qxd8 {[%emt 0:00:19]} 29. Ng3 {[%emt 0:00:04]} Kh8 {[%emt 0:04:23]} 30. Ne4 {[%emt 0:03:34]} Rd5 {[%emt 0:01:26]} 31. Qxe6 {[%emt 0:00:24]} Qg8 {[%emt 0:10:17]} 32. Qxg8+ {[%emt 0:01:47]} Kxg8 {[%emt 0:00:02][%mdl 4096] Endgame KRB-KRN} 33. Re2 {[%emt 0:01:18]} Kf7 {[%emt 0:00:50]} 34. Kg2 {[%emt 0:00:34]} c4 {[%emt 0:01:06]} 35. b3 {[%emt 0:00:30]} cxb3 {[%emt 0:00:31]} 36. axb3 {[%emt 0:00:01]} a5 {[%emt 0:02:07]} 37. c4 {[%emt 0:03:48] The position is equal.} Rd3 {[%emt 0:00:12]} 38. c5 {[%emt 0:00:33]} bxc5 {[%emt 0:01:59]} 39. Nxc5 {[%emt 0:00:02]} Rd5 {[%emt 0:00:47]} 40. Ne4 {[%emt 0:00:00]} Be5 {[%emt 0:00:00]} 41. Ng5+ {[%emt 0:05:58]} Kg6 {[%emt 0:02:01]} 42. Nf3 {[%emt 0:00:07]} Bf6 {[%emt 0:00:54]} 43. Nd2 {[%emt 0:00:30]} Rd4 {[%emt 0:01:50]} 44. Kf3 {[%emt 0:02:01]} h5 {[%emt 0:08:53]} 45. Ne4 {[%emt 0:01:48]} Rb4 {[%emt 0:03:02]} 46. Re3 {[%emt 0:00:49]} Bd4 {[%emt 0:01:06]} 47. Rd3 {[%emt 0:00:05]} Be5 {[%emt 0:00:07]} 48. h3 {[%emt 0:00:19]} Kf5 {[%emt 0:06:07]} 49. Nd2 {[%emt 0:08:27]} Ke6 {[%emt 0:03:48]} 50. Re3 {[%emt 0:06:28]} Kd5 {[%emt 0:00:34]} 51. Re4 {[%emt 0:00:13]} Rb8 {[%emt 0:05:17]} 52. Rh4 {[%emt 0:00:24]} Bc3 {[%emt 0:00:45]} 53. Rxh5+ {[%emt 0:00:23]} Kd4 {[%emt 0:00:09]} 54. Rh4+ {[%emt 0:00:22]} Kd3 {[%emt 0:00:28]} 55. Ne4 {[%emt 0:00:06]} Bd4 {[%emt 0:00:37]} 56. Nf2+ $1 {[%emt 0:01:58]} Kc3 {[%emt 0:01:25] [#] And now ...Rf8+ would win.} 57. Nd1+ {[%emt 0:00:04]} Kd3 {[%emt 0:00:05]} 58. Nf2+ {[%emt 0:00:01]} Bxf2 {[%emt 0:01:30]} 59. Kxf2 {[%emt 0:00:01]} Rxb3 {[%emt 0:00:08] KR-KR} 60. Ra4 {[%emt 0:01:35]} Rb5 {[%emt 0:00:10]} 61. h4 {[%emt 0:00:05]} Kc3 {[%emt 0:00:10]} 62. Kg3 {[%emt 0:00:47]} Kb3 {[%emt 0:00:52]} 63. Ra1 {[%emt 0:00:06] Rb1+ would kill now.} Kb2 {[%emt 0:00:46] Prevents Rb1+.} 64. Ra4 {[%emt 0:00:15]} Kb3 {[%emt 0:00:12]} 65. Ra1 {[%emt 0:00:01] White wants to mate with Rb1+.} a4 {[%emt 0:00:27]} 66. Kg4 {[%emt 0:00:04]} a3 {[%emt 0:00:11]} 67. h5 {[%emt 0:00:04]} Kb2 {[%emt 0:00:07]} 68. Rxa3 {[%emt 0:00:26]} Kxa3 {[%emt 0:00:04]} 69. h6 {[%emt 0:00:04]} Rb6 {[%emt 0:00:55]} 70. Kg5 {[%emt 0:00:06]} Rxh6 {[%emt 0:00:11]} 71. Kxh6 {[%emt 0:00:09] Weighted Error Value: White=0.07 (flawless) /Black=0.08 (flawless)} 1/2-1/2

[Event "Croatian 1A League 2022"]
[Site "Porec"]
[Date "2022.09.28"]
[Round "5.4"]
[White "Kuljasevic, Davorin"]
[Black "Zufic, Miroslav"]
[Result "1-0"]
[ECO "D37"]
[WhiteElo "2560"]
[BlackElo "2370"]
[Annotator "TA"]
[PlyCount "79"]
[EventDate "2022.09.24"]
[EventType "team-tourn"]
[EventCountry "CRO"]
[SourceTitle "playchess.com"]
[Source "ChessBase"]
[SourceQuality "1"]
[TimeControl "40/5400+30:1800+30"]

{[%evp 16,79,5,6,22,32,27,19,25,23,45,38,34,38,104,110,98,96,118,120,114,118,119,117,119,119,114,110,124,105,116,114,115,115,116,119,123,117,130,126,135,136,134,122,137,115,146,135,158,140,152,148,216,225,314,308,293,293,452,453,436,429,409,377,351,333]} 1. d4 {[%emt 0:00:03]} Nf6 {[%emt 0:00:51]} 2. c4 {[%emt 0:00:12]} e6 {[%emt 0:00:11]} 3. Nf3 {[%emt 0:00:25]} d5 {[%emt 0:00:05]} 4. Nc3 {[%emt 0:00:18]} Be7 {[%emt 0:01:32]} 5. Bf4 {[%emt 0:00:47]} O-O {[%emt 0:02:59]} 6. e3 {[%emt 0:00:21]} b6 {[%emt 0:01:04]} 7. cxd5 {[%emt 0:01:14]} Nxd5 {[%emt 0:00:25]} 8. Nxd5 {[%emt 0:00:10]} exd5 {[%emt 0:12:35]} 9. Bd3 {[%emt 0:00:39]} Bb4+ {[%emt 0:12:31] D37: Queen's Gambit Declined: 5 Bf4.} 10. Nd2 $1 {[%emt 0:20:08]} Ba6 {[%emt 0:06:00]} 11. Bxa6 {[%emt 0:02:19]} Nxa6 {[%emt 0:00:04] The position is equal.} 12. O-O {[%emt 0:03:28]} Bd6 {[%emt 0:14:46]} 13. Bxd6 {[%emt 0:03:33]} Qxd6 {[%emt 0:00:06]} 14. Qa4 {[%emt 0:00:28] [#]} Qb4 $146 {[%emt 0:05:50]} (14... Nb4 $14) ({Predecessor:} 14... Nb4 15. a3 Nc6 16. Rac1 Ne7 17. Rc3 Rfc8 18. Rfc1 c6 19. Nf3 Rc7 20. Ne1 Rac8 {1-0 (78) Dmitrieva,G (2264)-Babulova,M (2162) ICCF email 2014}) 15. Qxa6 $16 {[%emt 0:11:10]} Qxd2 {[%emt 0:00:05]} 16. b3 {[%emt 0:04:11]} Rfd8 {[%emt 0:28:04]} 17. Rac1 {[%emt 0:08:19]} c5 {[%emt 0:01:28]} 18. dxc5 {[%emt 0:02:22]} bxc5 {[%emt 0:00:13]} 19. Rxc5 {[%emt 0:00:12]} d4 {[%emt 0:00:53]} 20. exd4 {[%emt 0:01:13]} Qxd4 {[%emt 0:02:13]} 21. Rc7 {[%emt 0:01:59]} h6 {[%emt 0:02:03]} 22. h3 {[%emt 0:05:23] White is much more active.} Rd7 {[%emt 0:02:31]} 23. Rxd7 {[%emt 0:00:30]} Qxd7 {[%emt 0:00:03][%mdl 4096] Endgame KQR-KQR} 24. Rc1 {[%emt 0:01:03]} Rd8 {[%emt 0:02:20]} 25. Qa5 {[%emt 0:03:45]} Qe7 {[%emt 0:00:57]} 26. g3 {[%emt 0:10:49]} Kh7 {[%emt 0:01:16]} 27. h4 {[%emt 0:01:18]} Rd7 {[%emt 0:01:12]} 28. Re1 {[%emt 0:06:16]} Qd6 {[%emt 0:01:30]} 29. Qe5 {[%emt 0:05:32]} Qd2 {[%emt 0:00:30]} 30. Qe4+ {[%emt 0:00:39]} Kg8 {[%emt 0:00:06]} 31. Kg2 {[%emt 0:02:40]} Qd6 {[%emt 0:00:58]} 32. Re3 {[%emt 0:03:35]} Rd8 {[%emt 0:00:32]} 33. Rc3 {[%emt 0:00:25]} g6 {[%emt 0:00:32]} (33... a5 $16 34. Qc6 Qd5+ 35. Qxd5 Rxd5) 34. Rc6 $18 {[%emt 0:00:19]} Qd7 {[%emt 0:00:20]} 35. h5 {[%emt 0:00:38]} Re8 {[%emt 0:00:28]} 36. Qf3 {[%emt 0:01:00]} Re6 {[%emt 0:00:31]} (36... gxh5 $142 37. Rxh6 Re6 38. Rxh5 Qc6) 37. Rxe6 {[%emt 0:00:37]} Qxe6 {[%emt 0:00:08]} 38. hxg6 {[%emt 0:00:21]} Qxg6 {[%emt 0:00:54]} 39. Qa8+ {[%emt 0:00:08]} Kg7 {[%emt 0:00:10]} 40. Qxa7 {[%emt 0:00:00] White took control after the opening.  Weighted Error Value: White=0.04 (flawless) /Black=0.23 (precise)} 1-0

[Event "Croatian 1A League 2022"]
[Site "Porec"]
[Date "2022.09.28"]
[Round "5.5"]
[White "Franic, Milan"]
[Black "Jovanic, Ognjen"]
[Result "1/2-1/2"]
[ECO "D30"]
[WhiteElo "2365"]
[BlackElo "2507"]
[Annotator "TA"]
[PlyCount "53"]
[EventDate "2022.09.24"]
[EventType "team-tourn"]
[EventCountry "CRO"]
[SourceTitle "playchess.com"]
[Source "ChessBase"]
[SourceQuality "1"]
[TimeControl "40/5400+30:1800+30"]

{[%evp 16,53,-10,0,-10,-11,-14,-8,0,-5,16,0,0,-7,0,-10,5,9,10,-13,0,0,0,-21,0,0,0,0,0,0,0,-7,0,0,1,0,6,0,10,7]} 1. d4 {[%emt 0:00:46]} d5 {[%emt 0:00:20]} 2. Nf3 {[%emt 0:01:53]} Nf6 {[%emt 0:01:11]} 3. e3 {[%emt 0:00:14]} c5 {[%emt 0:04:24]} 4. dxc5 {[%emt 0:06:58]} e6 {[%emt 0:02:29]} 5. a3 {[%emt 0:06:06]} Bxc5 {[%emt 0:00:47]} 6. c4 {[%emt 0:05:31]} O-O {[%emt 0:01:47]} 7. b4 {[%emt 0:04:06]} Be7 {[%emt 0:04:21]} 8. Bb2 {[%emt 0:00:20]} b6 {[%emt 0:01:33]} 9. Nbd2 {[%emt 0:04:24] The position is equal.} Bb7 {[%emt 0:00:16] D30: Queen's Gambit Declined: Systems without Nc3.} 10. Be2 {[%emt 0:00:39]} Nbd7 {[%emt 0:01:02]} 11. O-O {[%emt 0:00:12]} Rc8 {[%emt 0:08:46]} 12. Rc1 {[%emt 0:14:48]} Rc7 {[%emt 0:04:26] [#]} 13. Bd3 $146 {[%emt 0:06:54]} ({Predecessor:} 13. Nd4 Qa8 14. Nb5 Rcc8 15. cxd5 Nxd5 16. Nc4 N5f6 17. f3 Bd5 18. e4 Bxc4 19. Bxc4 {½-½ (51) Mikhalevski,V (2610)-Pavasovic,D (2574) Austria 2010}) 13... dxc4 {[%emt 0:05:22]} 14. Rxc4 {[%emt 0:03:46]} Rxc4 {[%emt 0:02:32]} 15. Bxc4 {[%emt 0:02:42]} Bd6 {[%emt 0:08:50]} 16. Qe2 {[%emt 0:03:23]} Qb8 {[%emt 0:03:40]} 17. Rd1 {[%emt 0:01:19]} Ne5 {[%emt 0:11:40]} 18. Nxe5 {[%emt 0:03:04]} Bxe5 {[%emt 0:00:05]} 19. Nf1 {[%emt 0:13:13]} Bxb2 {[%emt 0:06:17]} 20. Qxb2 {[%emt 0:00:08]} Qc7 {[%emt 0:02:52]} 21. Be2 {[%emt 0:03:13]} Rc8 {[%emt 0:00:49]} 22. f3 {[%emt 0:04:11]} Nd5 {[%emt 0:02:40]} 23. Rd4 {[%emt 0:00:40]} g6 {[%emt 0:08:14]} 24. Rc4 {[%emt 0:00:46]} Qd8 {[%emt 0:04:37]} 25. Qd4 {[%emt 0:00:57]} Rxc4 {[%emt 0:01:04]} 26. Bxc4 {[%emt 0:00:29]} Qf6 {[%emt 0:00:23]} 27. Qxf6 {[%emt 0:01:04] A balanced but interesting game.  Weighted Error Value: White=0.05 (flawless) /Black=0.06 (flawless)} 1/2-1/2

[Event "Croatian 1A League 2022"]
[Site "Porec"]
[Date "2022.09.28"]
[Round "5.6"]
[White "Srbis, Jurica"]
[Black "Glavas, Dragan"]
[Result "1/2-1/2"]
[ECO "C01"]
[WhiteElo "2442"]
[BlackElo "2249"]
[Annotator "TA"]
[PlyCount "100"]
[EventDate "2022.09.24"]
[EventType "team-tourn"]
[EventCountry "CRO"]
[SourceTitle "playchess.com"]
[Source "ChessBase"]
[SourceQuality "1"]
[TimeControl "40/5400+30:1800+30"]

{[%evp 10,100,21,0,14,6,45,17,9,0,0,0,0,0,26,20,41,26,28,20,27,16,13,12,51,58,73,57,53,54,64,54,41,5,33,36,45,43,75,46,47,0,0,0,72,77,129,122,144,6,10,0,0,0,41,0,171,0,0,0,0,0,0,0,0,0,0,0,0,0,0,0,0,0,0,-82,0,0,0,0,0,0,0,0,0,0,0,0,0,0,0,0,0]} 1. e4 {[%emt 0:00:04]} e6 {[%emt 0:00:10]} 2. d4 {[%emt 0:00:13]} d5 {[%emt 0:00:08]} 3. Nc3 {[%emt 0:00:12]} Bb4 {[%emt 0:00:20]} 4. exd5 {[%emt 0:00:17]} exd5 {[%emt 0:01:13]} 5. Bd3 {[%emt 0:00:10]} Ne7 {[%emt 0:03:32]} 6. Qh5 {[%emt 0:05:12]} g6 {[%emt 0:07:32] C01: French: Exchange Variation.} 7. Qf3 {[%emt 0:03:18]} Nbc6 {[%emt 0:01:44]} 8. Nge2 {[%emt 0:05:06]} (8. Bg5 {looks sharper.} h6 9. Bf6 Bxc3+ 10. bxc3 O-O 11. Qf4) 8... Bf5 {[%emt 0:04:26] [#]} 9. a3 $146 {[%emt 0:03:03]} ({Predecessor:} 9. Bg5 Qd6 10. O-O f6 11. Nb5 Qd7 12. Bxf6 O-O 13. Bxe7 Nxe7 14. Qg3 c6 15. Nbc3 {½-½ (65) Hatzl,J (2118)-Zauner,C (1960) Austria 2015}) 9... Bxc3+ {[%emt 0:02:11]} 10. bxc3 {[%emt 0:00:15]} Qd7 {[%emt 0:00:47]} 11. O-O {[%emt 0:10:10]} Bxd3 {[%emt 0:05:45]} 12. cxd3 {[%emt 0:00:53]} O-O {[%emt 0:06:21]} 13. Ng3 {[%emt 0:05:14]} Kg7 {[%emt 0:04:45] Against Bh6+} 14. Re1 {[%emt 0:12:51]} Rae8 {[%emt 0:03:46]} 15. Bf4 {[%emt 0:02:30]} Ng8 {[%emt 0:00:45]} 16. Re3 {[%emt 0:03:00]} Rxe3 {[%emt 0:06:08]} 17. fxe3 {[%emt 0:00:13]} f6 {[%emt 0:00:14]} 18. Rf1 {[%emt 0:01:13]} Nd8 {[%emt 0:02:07]} 19. e4 {[%emt 0:03:07]} c6 {[%emt 0:00:12]} 20. Re1 {[%emt 0:12:16] White has more active pieces.} Re8 {[%emt 0:12:06]} 21. Nf1 {[%emt 0:00:48]} Ne6 {[%emt 0:04:01]} 22. Bd2 {[%emt 0:01:49]} Ne7 {[%emt 0:03:02]} 23. h4 {[%emt 0:01:46]} f5 {[%emt 0:08:08]} 24. Ng3 {[%emt 0:06:43]} Rf8 {[%emt 0:03:39]} 25. exd5 {[%emt 0:01:09]} (25. Qe2 $14 dxe4 26. dxe4) 25... Nxd5 $11 {[%emt 0:01:13]} 26. h5 {[%emt 0:01:11]} f4 {[%emt 0:02:45]} (26... Nf6 $11) 27. Ne4 $16 {[%emt 0:00:23]} Rf5 {[%emt 0:00:16]} (27... Ndc7 $142) 28. hxg6 {[%emt 0:00:45]} hxg6 {[%emt 0:00:24] [#]} 29. Qg4 {[%emt 0:00:48]} (29. c4 $1 $16 {[%cal Rc4d5]} Ndc7 30. Bc3) 29... Nf6 $11 {[%emt 0:01:17]} 30. Nxf6 {[%emt 0:00:18]} Kxf6 {[%emt 0:00:12]} 31. Re4 {[%emt 0:04:21][%cal Rd2f4]} g5 {[%emt 0:04:37]} 32. Qh3 {[%emt 0:01:37]} Ng7 $2 {[%emt 0:01:06]} (32... Kg6 $11 {and Black has nothing to worry.}) 33. Qh7 $2 {[%emt 0:02:17]} (33. Qh6+ $18 Kf7 34. c4 (34. Qh7 Rb5 $11)) 33... Qf7 {[%emt 0:00:51]} 34. Re5 {[%emt 0:09:34]} Rxe5 {[%emt 0:01:23]} 35. dxe5+ {[%emt 0:00:17]} Kxe5 {[%emt 0:00:17][%mdl 4096] Endgame KQB-KQN} 36. c4 $1 {[%emt 0:00:11]} Ke6 {[%emt 0:00:21]} ({Don't do} 36... Kd6 37. Bc3 Qh5 38. c5+ (38. Qxg7 Qd1+ 39. Kf2 Qc2+ 40. Kf1 Qxd3+ 41. Kg1 Qd1+ 42. Kf2 Qc2+ 43. Kf1 Qd3+ 44. Ke1 Qe4+ 45. Kd1 Qd3+ 46. Kc1 Qxc4 $11) 38... Kxc5 39. Qxg7 Qd1+ 40. Kf2 Qc2+ 41. Kf3 (41. Kg1 Qd1+ 42. Kf2 Qc2+ 43. Kf3 Qxd3+ 44. Kg4 Qe2+ 45. Kf5 Qc2+ 46. Ke6 Kb6 $14) 41... Qxd3+ 42. Kg4 $14) 37. Qe4+ {[%emt 0:00:30]} Kd7 {[%emt 0:00:22]} 38. Qd4+ {[%emt 0:00:06]} Ke8 {[%emt 0:04:50]} ({But not} 38... Kc8 39. Qxa7 Qc7 40. Ba5 $14) 39. Bb4 {[%emt 0:00:58]} Ne6 {[%emt 0:00:38]} 40. Qxa7 {[%emt 0:00:00]} Qd7 {[%emt 0:00:00]} 41. Qb8+ {[%emt 0:03:31]} Kf7 {[%emt 0:02:18]} 42. Bd6 {[%emt 0:07:36] [#]} (42. Bc3 $11 {keeps the balance.}) 42... c5 {[%emt 0:03:32]} (42... Kg6 $1 $17 {[%cal Rg6f5] ...Kf5 is the strong threat.} 43. Be5 Qd8) 43. Be5 {[%emt 0:04:42] The position is equal.} Qxd3 {[%emt 0:04:48] aiming for ...Qe3+.} 44. Qxb7+ {[%emt 0:00:12]} Kg6 {[%emt 0:00:09] Threatens to win with ...Qe3+.} 45. Qd5 {[%emt 0:02:50]} Qe3+ {[%emt 0:06:49]} 46. Kh2 {[%emt 0:01:14]} Nd4 {[%emt 0:06:49]} 47. Bxd4 {[%emt 0:02:19]} cxd4 {[%emt 0:00:36]} 48. Qg8+ {[%emt 0:00:31]} Kf6 {[%emt 0:03:08]} 49. Qf8+ {[%emt 0:00:28]} Kg6 {[%emt 0:01:23]} 50. Qg8+ {[%emt 0:00:06]} Kf6 {[%emt 0:00:17] Weighted Error Value: White=0.16 (very precise) /Black=0.18 (very precise)} 1/2-1/2